[Event "*** Titled Tuesday Blitz"]
[Site "Chess.com"]
[Date "2020.05.26"]
[Round "7"]
[White "kuba2006"]
[Black "vidavi"]
[Result "0-1"]
[WhiteElo "2395"]
[BlackElo "2317"]
[TimeControl "180+1"]
[EndTime "11:21:06 PDT"]
[Termination "vidavi won by checkmate"]

1. e4 {[%clk 0:03:00.9]} 1... c6 {[%clk 0:02:59.4]} 2. d4 {[%clk 0:03:00.4]}
2... d6 {[%clk 0:02:59.7]} 3. Nc3 {[%clk 0:02:59]} 3... Nf6 {[%clk 0:02:59.9]}
4. f3 {[%clk 0:02:58.8]} 4... e5 {[%clk 0:02:57.3]} 5. Be3 {[%clk 0:02:58.4]}
5... Nbd7 {[%clk 0:02:54.4]} 6. Nge2 {[%clk 0:02:57.6]} 6... b5 {[%clk
0:02:50.8]} 7. g4 {[%clk 0:02:53.7]} 7... Nb6 {[%clk 0:02:47.2]} 8. Ng3 {[%clk
0:02:52]} 8... Be7 {[%clk 0:02:39.7]} 9. Bd3 {[%clk 0:02:45.2]} 9... b4 {[%clk
0:02:35.3]} 10. Nce2 {[%clk 0:02:44.5]} 10... a5 {[%clk 0:02:35.2]} 11. Qd2
{[%clk 0:02:41.8]} 11... Ba6 {[%clk 0:02:19.4]} 12. Bxa6 {[%clk 0:02:23.6]}
12... Rxa6 {[%clk 0:02:20.3]} 13. Qd3 {[%clk 0:02:23.8]} 13... Qa8 {[%clk
0:02:09.7]} 14. O-O-O {[%clk 0:02:18.5]} 14... g6 {[%clk 0:02:08.3]} 15. dxe5
{[%clk 0:02:16.7]} 15... dxe5 {[%clk 0:02:07.3]} 16. Bxb6 {[%clk 0:02:13.5]}
16... Rxb6 {[%clk 0:02:02.5]} 17. g5 {[%clk 0:02:13.1]} 17... O-O {[%clk
0:01:57.4]} 18. gxf6 {[%clk 0:02:10.3]} 18... Bxf6 {[%clk 0:01:58.3]} 19. Kb1
{[%clk 0:02:06.6]} 19... a4 {[%clk 0:01:58.2]} 20. h4 {[%clk 0:02:02]} 20... c5
{[%clk 0:01:47.1]} 21. h5 {[%clk 0:01:56]} 21... Rc8 {[%clk 0:01:26.9]} 22. hxg6
{[%clk 0:01:53.4]} 22... hxg6 {[%clk 0:01:27.3]} 23. Qd5 {[%clk 0:01:46]} 23...
Qa6 {[%clk 0:01:18.6]} 24. Nc1 {[%clk 0:00:21.2]} 24... Rd8 {[%clk 0:01:06.3]}
25. Qxd8+ {[%clk 0:00:10.5]} 25... Bxd8 {[%clk 0:01:07.2]} 26. Rxd8+ {[%clk
0:00:10.6]} 26... Kg7 {[%clk 0:01:07.8]} 27. Rg1 {[%clk 0:00:07.8]} 27... Kf6
{[%clk 0:01:02.8]} 28. Re8 {[%clk 0:00:04.6]} 28... Re6 {[%clk 0:00:53.5]} 29.
Rg8 {[%clk 0:00:02.4]} 29... c4 {[%clk 0:00:52.6]} 30. Nge2 {[%clk 0:00:01.1]}
30... c3 {[%clk 0:00:48]} 31. f4 {[%clk 0:00:01.5]} 31... cxb2 {[%clk
0:00:45.4]} 32. Nd3 {[%clk 0:00:01.9]} 32... b3 {[%clk 0:00:41.9]} 33. fxe5+
{[%clk 0:00:02]} 33... Ke7 {[%clk 0:00:39.2]} 34. Rf1 {[%clk 0:00:02.6]} 34...
bxc2+ {[%clk 0:00:34.4]} 35. Kxc2 {[%clk 0:00:03]} 35... Qc4+ {[%clk 0:00:32.2]}
36. Nc3 {[%clk 0:00:03.6]} 36... Rc6 {[%clk 0:00:32.1]} 37. Kb1 {[%clk
0:00:02.7]} 37... Qxd3+ {[%clk 0:00:31.5]} 38. Kxb2 {[%clk 0:00:02]} 38... Qxc3+
{[%clk 0:00:31.8]} 39. Kb1 {[%clk 0:00:02.4]} 39... Rb6# {[%clk 0:00:32.2]} 0-1

[Event "*** Titled Tuesday Blitz"]
[Site "Chess.com"]
[Date "2020.05.26"]
[Round "7"]
[White "GukeshDommaraju"]
[Black "pastouche06"]
[Result "0-1"]
[WhiteElo "2656"]
[BlackElo "2492"]
[TimeControl "180+1"]
[EndTime "11:21:09 PDT"]
[Termination "pastouche06 won by checkmate"]

1. e4 {[%clk 0:03:00.9]} 1... c6 {[%clk 0:02:59.7]} 2. d4 {[%clk 0:03:00.3]}
2... d5 {[%clk 0:03:00.1]} 3. exd5 {[%clk 0:03:00.4]} 3... cxd5 {[%clk
0:02:59.7]} 4. Bd3 {[%clk 0:03:00.9]} 4... Nc6 {[%clk 0:02:58.6]} 5. c3 {[%clk
0:03:01.2]} 5... Nf6 {[%clk 0:02:58.8]} 6. Bf4 {[%clk 0:03:00.9]} 6... Bg4
{[%clk 0:02:57.4]} 7. Qb3 {[%clk 0:03:00.5]} 7... Qc8 {[%clk 0:02:57.1]} 8. Nd2
{[%clk 0:03:00]} 8... e6 {[%clk 0:02:57.1]} 9. Ngf3 {[%clk 0:02:59.6]} 9... Be7
{[%clk 0:02:56.8]} 10. O-O {[%clk 0:02:57.9]} 10... Bh5 {[%clk 0:02:56.1]} 11.
Rae1 {[%clk 0:02:52]} 11... Bg6 {[%clk 0:02:52.2]} 12. Bxg6 {[%clk 0:02:50.5]}
12... hxg6 {[%clk 0:02:53.1]} 13. h3 {[%clk 0:02:50.8]} 13... O-O {[%clk
0:02:51.3]} 14. Ne5 {[%clk 0:02:50.8]} 14... Nxe5 {[%clk 0:02:49.5]} 15. Bxe5
{[%clk 0:02:49]} 15... Nd7 {[%clk 0:02:44]} 16. Bf4 {[%clk 0:02:48.5]} 16... Qc6
{[%clk 0:02:32.4]} 17. Nf3 {[%clk 0:02:47.1]} 17... Bd6 {[%clk 0:02:32.6]} 18.
Bxd6 {[%clk 0:02:40.3]} 18... Qxd6 {[%clk 0:02:33.5]} 19. h4 {[%clk 0:02:33.6]}
19... Rab8 {[%clk 0:02:04]} 20. g3 {[%clk 0:02:03.3]} 20... b5 {[%clk
0:01:59.3]} 21. a3 {[%clk 0:01:56.2]} 21... a5 {[%clk 0:01:58.1]} 22. Qd1 {[%clk
0:01:53.6]} 22... b4 {[%clk 0:01:50.4]} 23. cxb4 {[%clk 0:01:52.6]} 23... axb4
{[%clk 0:01:51.3]} 24. a4 {[%clk 0:01:51.7]} 24... b3 {[%clk 0:01:40.2]} 25. Kg2
{[%clk 0:01:38.7]} 25... Nf6 {[%clk 0:01:21.3]} 26. Ne5 {[%clk 0:01:35.5]} 26...
Rfc8 {[%clk 0:01:05]} 27. Re3 {[%clk 0:01:28.5]} 27... Qb4 {[%clk 0:00:42.6]}
28. h5 {[%clk 0:01:09.4]} 28... gxh5 {[%clk 0:00:39.6]} 29. Rh1 {[%clk
0:01:08.6]} 29... Rc2 {[%clk 0:00:38.8]} 30. Rf3 {[%clk 0:00:52.9]} 30... Rd2
{[%clk 0:00:35.2]} 31. Qb1 {[%clk 0:00:42.4]} 31... Rc8 {[%clk 0:00:28.3]} 32.
Rxf6 {[%clk 0:00:36.2]} 32... gxf6 {[%clk 0:00:29.2]} 33. Rxh5 {[%clk
0:00:36.8]} 33... Rcc2 {[%clk 0:00:28.5]} 34. Ng4 {[%clk 0:00:27.7]} 34... Qxd4
{[%clk 0:00:25.7]} 35. Qh1 {[%clk 0:00:23.8]} 35... Qe4+ {[%clk 0:00:11.6]} 36.
Kh2 {[%clk 0:00:23.8]} 36... Rxf2+ {[%clk 0:00:09.1]} 37. Nxf2 {[%clk 0:00:24]}
37... Rxf2+ {[%clk 0:00:10]} 38. Kg1 {[%clk 0:00:24.2]} 38... Qe1# {[%clk
0:00:10.1]} 0-1

[Event "*** Titled Tuesday Blitz"]
[Site "Chess.com"]
[Date "2020.05.26"]
[Round "7"]
[White "124chess"]
[Black "RobertoJBM"]
[Result "1/2-1/2"]
[WhiteElo "2754"]
[BlackElo "2588"]
[TimeControl "180+1"]
[EndTime "11:21:10 PDT"]
[Termination "Game drawn by repetition"]

1. c4 {[%clk 0:03:00.9]} 1... c6 {[%clk 0:02:55.6]} 2. Nf3 {[%clk 0:03:00.6]}
2... d5 {[%clk 0:02:56.5]} 3. e3 {[%clk 0:03:01.2]} 3... Nf6 {[%clk 0:02:56.2]}
4. Nc3 {[%clk 0:03:01.7]} 4... e6 {[%clk 0:02:55.8]} 5. b3 {[%clk 0:03:02]} 5...
Nbd7 {[%clk 0:02:55.8]} 6. Bb2 {[%clk 0:03:01.6]} 6... Bd6 {[%clk 0:02:55.1]} 7.
g4 {[%clk 0:03:01]} 7... O-O {[%clk 0:02:39.4]} 8. g5 {[%clk 0:03:00.6]} 8...
Ne4 {[%clk 0:02:38]} 9. Qc2 {[%clk 0:02:51.2]} 9... f5 {[%clk 0:02:31.2]} 10. d3
{[%clk 0:02:47.3]} 10... Nxc3 {[%clk 0:02:29]} 11. Bxc3 {[%clk 0:02:48.2]} 11...
Qe7 {[%clk 0:02:24.8]} 12. h4 {[%clk 0:02:37.7]} 12... e5 {[%clk 0:02:22.2]} 13.
Be2 {[%clk 0:02:11.7]} 13... a6 {[%clk 0:01:35.1]} 14. a4 {[%clk 0:02:00.3]}
14... e4 {[%clk 0:01:34]} 15. Nd2 {[%clk 0:01:54.3]} 15... Ne5 {[%clk
0:01:31.3]} 16. O-O-O {[%clk 0:01:20.7]} 16... Be6 {[%clk 0:01:22.7]} 17. Kb1
{[%clk 0:01:16.6]} 17... b5 {[%clk 0:01:16.2]} 18. c5 {[%clk 0:01:15.6]} 18...
Bc7 {[%clk 0:01:10.2]} 19. Bxe5 {[%clk 0:01:13.9]} 19... Bxe5 {[%clk 0:01:09.1]}
20. a5 {[%clk 0:01:13.6]} 20... b4 {[%clk 0:01:03.9]} 21. f4 {[%clk 0:01:13.3]}
21... Bc7 {[%clk 0:01:01.4]} 22. d4 {[%clk 0:01:11.3]} 22... Bxa5 {[%clk
0:01:01.1]} 23. Kb2 {[%clk 0:01:11.7]} 23... Bc7 {[%clk 0:01:01.2]} 24. Ra1
{[%clk 0:01:12.2]} 24... a5 {[%clk 0:01:01.7]} 25. h5 {[%clk 0:01:08]} 25...
Rfb8 {[%clk 0:00:58.9]} 26. h6 {[%clk 0:01:06]} 26... g6 {[%clk 0:00:58.9]} 27.
Ra4 {[%clk 0:01:04.9]} 27... Ra7 {[%clk 0:00:50.5]} 28. Nf1 {[%clk 0:00:59.4]}
28... Bc8 {[%clk 0:00:49.1]} 29. Ng3 {[%clk 0:00:56.8]} 29... Qf7 {[%clk
0:00:49]} 30. Rg1 {[%clk 0:00:53.6]} 30... Ba6 {[%clk 0:00:47.1]} 31. Bxa6
{[%clk 0:00:53.2]} 31... Rxa6 {[%clk 0:00:48]} 32. Ne2 {[%clk 0:00:48.6]} 32...
Ra7 {[%clk 0:00:47.5]} 33. Rga1 {[%clk 0:00:49]} 33... Kf8 {[%clk 0:00:46.3]}
34. Nc1 {[%clk 0:00:39.4]} 34... Ke8 {[%clk 0:00:45.9]} 35. Na2 {[%clk
0:00:39.2]} 35... Rab7 {[%clk 0:00:46.3]} 36. Qe2 {[%clk 0:00:36.5]} 36... Kd7
{[%clk 0:00:44.8]} 37. Qa6 {[%clk 0:00:35.4]} 37... Qe8 {[%clk 0:00:44.7]} 38.
Nc1 {[%clk 0:00:34.5]} 38... Qc8 {[%clk 0:00:43.2]} 39. Qf1 {[%clk 0:00:27]}
39... Rb5 {[%clk 0:00:42.2]} 40. Ne2 {[%clk 0:00:27.1]} 40... Ke7 {[%clk
0:00:41.2]} 41. Ng3 {[%clk 0:00:27.1]} 41... Qe6 {[%clk 0:00:41.5]} 42. Qh3
{[%clk 0:00:27.2]} 42... Kd7 {[%clk 0:00:40.9]} 43. Rf1 {[%clk 0:00:22.6]} 43...
Ke7 {[%clk 0:00:40.2]} 44. Rd1 {[%clk 0:00:18.9]} 44... Bd8 {[%clk 0:00:39]} 45.
Rda1 {[%clk 0:00:17.5]} 45... Bc7 {[%clk 0:00:39.2]} 46. Re1 {[%clk 0:00:16.9]}
46... Bd8 {[%clk 0:00:38.4]} 47. Rea1 {[%clk 0:00:16.7]} 47... Bc7 {[%clk
0:00:38.9]} 48. Re1 {[%clk 0:00:16.6]} 48... Bd8 {[%clk 0:00:37.7]} 49. Rea1
{[%clk 0:00:16.4]} 1/2-1/2

[Event "*** Titled Tuesday Blitz"]
[Site "Chess.com"]
[Date "2020.05.26"]
[Round "7"]
[White "francyIM"]
[Black "Gurvich_Vitaly"]
[Result "1-0"]
[WhiteElo "2705"]
[BlackElo "2547"]
[TimeControl "180+1"]
[EndTime "11:21:12 PDT"]
[Termination "francyIM won on time"]

1. d4 {[%clk 0:03:00.9]} 1... d5 {[%clk 0:02:58]} 2. c4 {[%clk 0:02:59.3]} 2...
dxc4 {[%clk 0:02:58.9]} 3. Nf3 {[%clk 0:02:57.2]} 3... Nf6 {[%clk 0:02:58]} 4.
e3 {[%clk 0:02:57.4]} 4... e6 {[%clk 0:02:57.3]} 5. Bxc4 {[%clk 0:02:57.6]} 5...
a6 {[%clk 0:02:57.3]} 6. a4 {[%clk 0:02:57.2]} 6... c5 {[%clk 0:02:57]} 7. O-O
{[%clk 0:02:57.1]} 7... Nc6 {[%clk 0:02:56.8]} 8. Nc3 {[%clk 0:02:56.9]} 8...
cxd4 {[%clk 0:02:53.8]} 9. exd4 {[%clk 0:02:57.8]} 9... Nb4 {[%clk 0:02:54.2]}
10. Re1 {[%clk 0:02:52.7]} 10... Be7 {[%clk 0:02:54.1]} 11. Ne5 {[%clk
0:02:51.6]} 11... O-O {[%clk 0:02:53.6]} 12. b3 {[%clk 0:02:52]} 12... b6 {[%clk
0:02:52.1]} 13. Ba3 {[%clk 0:02:50.6]} 13... Bb7 {[%clk 0:02:48.7]} 14. Qd2
{[%clk 0:02:49.6]} 14... Nbd5 {[%clk 0:02:47.8]} 15. Bxe7 {[%clk 0:02:48]} 15...
Qxe7 {[%clk 0:02:48.3]} 16. Nxd5 {[%clk 0:02:47.9]} 16... Nxd5 {[%clk
0:02:49.2]} 17. Re4 {[%clk 0:02:45.4]} 17... Rac8 {[%clk 0:02:43.2]} 18. Rae1
{[%clk 0:02:42.7]} 18... g6 {[%clk 0:02:37]} 19. Qh6 {[%clk 0:02:40.5]} 19... f6
{[%clk 0:01:29.2]} 20. Nd3 {[%clk 0:01:58.5]} 20... Rce8 {[%clk 0:01:13.3]} 21.
h4 {[%clk 0:01:53.1]} 21... b5 {[%clk 0:00:43.2]} 22. axb5 {[%clk 0:01:50.8]}
22... axb5 {[%clk 0:00:44.1]} 23. Bxb5 {[%clk 0:01:50.6]} 23... Nc3 {[%clk
0:00:44.4]} 24. Rxe6 {[%clk 0:01:25.9]} 24... Qxe6 {[%clk 0:00:43.6]} 25. Bc4
{[%clk 0:01:19.2]} 25... Bd5 {[%clk 0:00:31.9]} 26. Rxe6 {[%clk 0:01:18.3]}
26... Rxe6 {[%clk 0:00:32.8]} 27. Nf4 {[%clk 0:01:18.4]} 27... Re1+ {[%clk
0:00:32.1]} 28. Kh2 {[%clk 0:01:18.3]} 28... Bxc4 {[%clk 0:00:28.8]} 29. bxc4
{[%clk 0:01:19.2]} 29... Re4 {[%clk 0:00:29]} 30. d5 {[%clk 0:01:17.4]} 30...
Rxc4 {[%clk 0:00:27.4]} 31. d6 {[%clk 0:01:10.9]} 31... Rf7 {[%clk 0:00:25.9]}
32. Ne6 {[%clk 0:01:06]} 32... Rc8 {[%clk 0:00:14.5]} 33. Qd2 {[%clk 0:00:58.1]}
33... Rd7 {[%clk 0:00:13.4]} 34. Nc7 {[%clk 0:00:44]} 34... Na4 {[%clk
0:00:02.2]} 35. Qa2+ {[%clk 0:00:43.4]} 35... Kg7 {[%clk 0:00:02]} 36. Qxa4
{[%clk 0:00:41.8]} 36... Rxd6 {[%clk 0:00:02.3]} 37. Ne8+ {[%clk 0:00:41.9]}
37... Rxe8 {[%clk 0:00:02.5]} 38. Qxe8 {[%clk 0:00:42.4]} 38... Rd5 {[%clk
0:00:02.1]} 39. g3 {[%clk 0:00:41.6]} 39... Re5 {[%clk 0:00:01.4]} 40. Qd7+
{[%clk 0:00:40.8]} 40... Kg8 {[%clk 0:00:01.7]} 41. Kg2 {[%clk 0:00:40]} 41...
h5 {[%clk 0:00:01.2]} 42. Kf3 {[%clk 0:00:37.8]} 42... Kf8 {[%clk 0:00:01.2]}
43. Kf4 {[%clk 0:00:37.8]} 43... Re7 {[%clk 0:00:01.7]} 44. Qd8+ {[%clk
0:00:36.5]} 44... Kf7 {[%clk 0:00:02]} 45. Qh8 {[%clk 0:00:36.6]} 1-0

[Event "*** Titled Tuesday Blitz"]
[Site "Chess.com"]
[Date "2020.05.26"]
[Round "7"]
[White "Shota_Azaladze"]
[Black "Abund"]
[Result "1-0"]
[WhiteElo "2833"]
[BlackElo "2604"]
[TimeControl "180+1"]
[EndTime "11:21:14 PDT"]
[Termination "Shota_Azaladze won on time"]

1. Nf3 {[%clk 0:03:00.9]} 1... Nf6 {[%clk 0:02:59.6]} 2. g3 {[%clk 0:03:00.9]}
2... g6 {[%clk 0:02:59.8]} 3. Bg2 {[%clk 0:03:01.3]} 3... Bg7 {[%clk 0:03:00.4]}
4. O-O {[%clk 0:03:02.2]} 4... O-O {[%clk 0:03:01]} 5. d3 {[%clk 0:03:03.1]}
5... d5 {[%clk 0:03:01]} 6. Nbd2 {[%clk 0:03:03]} 6... c5 {[%clk 0:02:59.8]} 7.
e4 {[%clk 0:03:03.1]} 7... Nc6 {[%clk 0:03:00.1]} 8. Re1 {[%clk 0:03:01.5]} 8...
e5 {[%clk 0:02:59.9]} 9. c3 {[%clk 0:03:02]} 9... h6 {[%clk 0:02:57.7]} 10. a3
{[%clk 0:03:01.7]} 10... Re8 {[%clk 0:02:45.4]} 11. b4 {[%clk 0:03:00.3]} 11...
dxe4 {[%clk 0:02:18.7]} 12. dxe4 {[%clk 0:02:57.9]} 12... Qe7 {[%clk 0:02:05.3]}
13. Nc4 {[%clk 0:02:52.4]} 13... Rd8 {[%clk 0:01:46.7]} 14. Qe2 {[%clk
0:02:48.8]} 14... b5 {[%clk 0:01:29.9]} 15. Ne3 {[%clk 0:02:33.6]} 15... a6
{[%clk 0:01:30]} 16. Nd5 {[%clk 0:02:32.8]} 16... Nxd5 {[%clk 0:01:27]} 17. exd5
{[%clk 0:02:33.7]} 17... Rxd5 {[%clk 0:01:27.4]} 18. Nd4 {[%clk 0:02:22.6]}
18... Nxd4 {[%clk 0:00:58.1]} 19. cxd4 {[%clk 0:02:22.1]} 19... Bb7 {[%clk
0:00:53.4]} 20. Bxd5 {[%clk 0:02:17.1]} 20... Bxd5 {[%clk 0:00:53.4]} 21. dxc5
{[%clk 0:02:14.7]} 21... Qe6 {[%clk 0:00:50.1]} 22. Bb2 {[%clk 0:02:09.3]} 22...
Qf5 {[%clk 0:00:45.6]} 23. g4 {[%clk 0:01:42.3]} 23... Qf4 {[%clk 0:00:35.3]}
24. h3 {[%clk 0:01:31.8]} 24... Re8 {[%clk 0:00:21.5]} 25. Qe3 {[%clk
0:01:28.9]} 25... Qxe3 {[%clk 0:00:05.4]} 26. Rxe3 {[%clk 0:01:28]} 26... f6
{[%clk 0:00:02.8]} 27. Rd1 {[%clk 0:01:27.3]} 27... Bb7 {[%clk 0:00:02.2]} 28.
Rd7 {[%clk 0:01:26.5]} 28... Bc8 {[%clk 0:00:02.3]} 29. Rc7 {[%clk 0:01:23.7]}
29... Rd8 {[%clk 0:00:02.6]} 30. Bc3 {[%clk 0:01:17.2]} 30... Be6 {[%clk
0:00:02.4]} 31. f4 {[%clk 0:01:11.9]} 31... Bc4 {[%clk 0:00:02]} 32. fxe5 {[%clk
0:01:11.1]} 32... fxe5 {[%clk 0:00:02.6]} 33. Bxe5 {[%clk 0:01:08.9]} 33... Bf8
{[%clk 0:00:03]} 34. Bc3 {[%clk 0:00:59.8]} 34... Rd1+ {[%clk 0:00:03]} 35. Kf2
{[%clk 0:00:59.7]} 35... Rf1+ {[%clk 0:00:02.5]} 36. Kg2 {[%clk 0:00:59.7]}
36... Rc1 {[%clk 0:00:01.9]} 37. Rc8 {[%clk 0:00:59.1]} 37... Rc2+ {[%clk
0:00:02.2]} 38. Kg3 {[%clk 0:00:58.1]} 38... Kf7 {[%clk 0:00:02.8]} 39. Rf3+
{[%clk 0:00:58.1]} 39... Ke6 {[%clk 0:00:03.3]} 40. Rcxf8 {[%clk 0:00:57.4]}
40... Bd5 {[%clk 0:00:04]} 41. Re3+ {[%clk 0:00:53.8]} 41... Kd7 {[%clk
0:00:03.6]} 42. Rf2 {[%clk 0:00:53.5]} 42... Rc1 {[%clk 0:00:03.3]} 43. Rd3
{[%clk 0:00:53.1]} 43... Rg1+ {[%clk 0:00:02.3]} 44. Kf4 {[%clk 0:00:52.3]}
44... Ke6 {[%clk 0:00:02.9]} 45. Re2+ {[%clk 0:00:51.6]} 45... Kf7 {[%clk
0:00:02.9]} 46. Rxd5 {[%clk 0:00:51.6]} 46... g5+ {[%clk 0:00:02.6]} 47. Ke5
{[%clk 0:00:51.4]} 1-0

[Event "*** Titled Tuesday Blitz"]
[Site "Chess.com"]
[Date "2020.05.26"]
[Round "7"]
[White "dennisodessa"]
[Black "UCantHandleDenker"]
[Result "0-1"]
[WhiteElo "2251"]
[BlackElo "2461"]
[TimeControl "180+1"]
[EndTime "11:21:17 PDT"]
[Termination "UCantHandleDenker won by resignation"]

1. d4 {[%clk 0:03:00]} 1... Nf6 {[%clk 0:02:59]} 2. c4 {[%clk 0:03:00.6]} 2...
d6 {[%clk 0:02:58.9]} 3. Nc3 {[%clk 0:03:01.1]} 3... Nbd7 {[%clk 0:02:59.2]} 4.
e4 {[%clk 0:03:00.6]} 4... e5 {[%clk 0:02:58.7]} 5. d5 {[%clk 0:03:00.5]} 5...
Be7 {[%clk 0:02:58.3]} 6. Be3 {[%clk 0:02:56.7]} 6... O-O {[%clk 0:02:57.3]} 7.
Bd3 {[%clk 0:02:57.3]} 7... Nc5 {[%clk 0:02:54.5]} 8. Bc2 {[%clk 0:02:57.9]}
8... a5 {[%clk 0:02:54.1]} 9. Qd2 {[%clk 0:02:46.3]} 9... Ng4 {[%clk 0:02:49.4]}
10. Bxc5 {[%clk 0:02:46.2]} 10... dxc5 {[%clk 0:02:48.8]} 11. Nf3 {[%clk
0:02:46.9]} 11... Bd6 {[%clk 0:02:41.6]} 12. O-O-O {[%clk 0:02:46]} 12... Bd7
{[%clk 0:02:36.7]} 13. h3 {[%clk 0:02:42.6]} 13... Nf6 {[%clk 0:02:35.8]} 14. g4
{[%clk 0:02:43.5]} 14... a4 {[%clk 0:02:26.5]} 15. Rdg1 {[%clk 0:02:25.5]} 15...
a3 {[%clk 0:02:20.9]} 16. b3 {[%clk 0:02:24.8]} 16... Qb8 {[%clk 0:02:19.4]} 17.
Bd3 {[%clk 0:02:19.5]} 17... b5 {[%clk 0:01:54.8]} 18. cxb5 {[%clk 0:02:13]}
18... c4 {[%clk 0:01:53.2]} 19. Bxc4 {[%clk 0:02:02.8]} 19... Qb6 {[%clk
0:01:47.8]} 20. Nh4 {[%clk 0:01:55.8]} 20... Bb4 {[%clk 0:01:41.9]} 21. Nf5
{[%clk 0:01:43]} 21... Nxe4 {[%clk 0:01:35.4]} 22. Nxe4 {[%clk 0:00:40.6]} 22...
Bxd2+ {[%clk 0:01:33.1]} 23. Nxd2 {[%clk 0:00:33.6]} 23... Bxf5 {[%clk
0:01:31.4]} 24. gxf5 {[%clk 0:00:32.5]} 24... Qd4 {[%clk 0:01:26.8]} 25. f6
{[%clk 0:00:28.2]} 25... g6 {[%clk 0:01:25.3]} 26. h4 {[%clk 0:00:25.3]} 26...
Qb2+ {[%clk 0:01:18.2]} 27. Kd1 {[%clk 0:00:24.9]} 27... Qxa2 {[%clk 0:01:18.6]}
28. h5 {[%clk 0:00:23]} 28... Kh8 {[%clk 0:00:41.1]} 29. hxg6 {[%clk 0:00:06.9]}
29... fxg6 {[%clk 0:00:40.2]} 30. Ke2 {[%clk 0:00:04.6]} 30... Rxf6 {[%clk
0:00:36.9]} 31. Rg2 {[%clk 0:00:03.7]} 31... Raf8 {[%clk 0:00:30.7]} 32. Rgh2
{[%clk 0:00:04.1]} 32... Rxf2+ {[%clk 0:00:30]} 33. Rxf2 {[%clk 0:00:03.6]}
33... Rxf2+ {[%clk 0:00:30.5]} 34. Kxf2 {[%clk 0:00:04.5]} 34... Qxd2+ {[%clk
0:00:30.7]} 35. Kg3 {[%clk 0:00:04.5]} 35... Kg7 {[%clk 0:00:30.2]} 36. b6
{[%clk 0:00:04.4]} 36... cxb6 {[%clk 0:00:29.8]} 37. Ra1 {[%clk 0:00:04.6]}
37... Qc3+ {[%clk 0:00:28.8]} 38. Kg4 {[%clk 0:00:05.1]} 38... Qxa1 {[%clk
0:00:29.2]} 0-1

[Event "*** Titled Tuesday Blitz"]
[Site "Chess.com"]
[Date "2020.05.26"]
[Round "7"]
[White "vladislavkovalev"]
[Black "Raja3401"]
[Result "1-0"]
[WhiteElo "2888"]
[BlackElo "2712"]
[TimeControl "180+1"]
[EndTime "11:21:18 PDT"]
[Termination "vladislavkovalev won by resignation"]

1. e4 {[%clk 0:03:00.9]} 1... c5 {[%clk 0:02:59.7]} 2. Be2 {[%clk 0:02:57.2]}
2... Nc6 {[%clk 0:02:56.9]} 3. d3 {[%clk 0:02:58.1]} 3... d5 {[%clk 0:02:56]} 4.
f4 {[%clk 0:02:59]} 4... dxe4 {[%clk 0:02:45.7]} 5. dxe4 {[%clk 0:02:59.9]} 5...
Qxd1+ {[%clk 0:02:45.8]} 6. Bxd1 {[%clk 0:03:00.2]} 6... g6 {[%clk 0:02:38.8]}
7. c3 {[%clk 0:03:00]} 7... Bg7 {[%clk 0:02:37.9]} 8. Be3 {[%clk 0:02:57.9]}
8... e5 {[%clk 0:02:20.7]} 9. Nf3 {[%clk 0:02:40.2]} 9... exf4 {[%clk 0:02:20]}
10. Bxf4 {[%clk 0:02:40.1]} 10... Bg4 {[%clk 0:02:10.8]} 11. Nbd2 {[%clk
0:02:36.8]} 11... O-O-O {[%clk 0:02:06.8]} 12. Bb3 {[%clk 0:02:34]} 12... Nf6
{[%clk 0:01:26.8]} 13. Kf2 {[%clk 0:02:15.7]} 13... Rhe8 {[%clk 0:01:18.5]} 14.
Rhe1 {[%clk 0:02:06.1]} 14... Bxf3 {[%clk 0:01:17.7]} 15. gxf3 {[%clk
0:02:03.8]} 15... Ne5 {[%clk 0:01:11.6]} 16. Bc2 {[%clk 0:01:58.8]} 16... Nh5
{[%clk 0:01:01.7]} 17. Be3 {[%clk 0:01:58.8]} 17... Nd3+ {[%clk 0:00:54.1]} 18.
Bxd3 {[%clk 0:01:58]} 18... Rxd3 {[%clk 0:00:55]} 19. Nc4 {[%clk 0:01:53.8]}
19... b6 {[%clk 0:00:50.7]} 20. Rad1 {[%clk 0:01:51.2]} 20... Red8 {[%clk
0:00:45.7]} 21. Rxd3 {[%clk 0:01:47.9]} 21... Rxd3 {[%clk 0:00:46.6]} 22. a4
{[%clk 0:01:48.6]} 22... Bf6 {[%clk 0:00:44.1]} 23. Ke2 {[%clk 0:01:47.5]} 23...
Rd7 {[%clk 0:00:43.4]} 24. f4 {[%clk 0:01:34.8]} 24... Bh4 {[%clk 0:00:37.1]}
25. Rc1 {[%clk 0:01:23.3]} 25... Re7 {[%clk 0:00:36.8]} 26. Kf3 {[%clk
0:01:22.9]} 26... Nf6 {[%clk 0:00:32.7]} 27. e5 {[%clk 0:01:22.5]} 27... Nd5
{[%clk 0:00:32.1]} 28. Ke4 {[%clk 0:01:17.4]} 28... Nxe3 {[%clk 0:00:30.7]} 29.
Nxe3 {[%clk 0:01:18]} 29... Re6 {[%clk 0:00:24.9]} 30. Rf1 {[%clk 0:01:15]}
30... f5+ {[%clk 0:00:17.4]} 31. Kd5 {[%clk 0:01:10.8]} 31... Kd7 {[%clk
0:00:17.1]} 32. Nc4 {[%clk 0:01:08]} 32... Bd8 {[%clk 0:00:14.1]} 33. Rf3 {[%clk
0:01:02.8]} 33... Bc7 {[%clk 0:00:14.2]} 34. Rh3 {[%clk 0:01:00.4]} 34... Re7
{[%clk 0:00:14.4]} 35. b4 {[%clk 0:00:54.5]} 35... cxb4 {[%clk 0:00:13.5]} 36.
cxb4 {[%clk 0:00:55.4]} 36... Bb8 {[%clk 0:00:11.4]} 37. b5 {[%clk 0:00:55.5]}
37... Bc7 {[%clk 0:00:08.7]} 38. Nd6 {[%clk 0:00:50.7]} 38... h5 {[%clk
0:00:03.8]} 39. Nc4 {[%clk 0:00:43.4]} 39... Rg7 {[%clk 0:00:03]} 40. Rg3 {[%clk
0:00:40.9]} 40... h4 {[%clk 0:00:03]} 41. Rg2 {[%clk 0:00:38.4]} 41... Ke7
{[%clk 0:00:02.6]} 42. Ne3 {[%clk 0:00:36.5]} 42... Rg8 {[%clk 0:00:03]} 43.
Nxf5+ {[%clk 0:00:35.7]} 43... Kd7 {[%clk 0:00:02.9]} 44. Nxh4 {[%clk
0:00:33.3]} 44... Rh8 {[%clk 0:00:02.2]} 45. Nxg6 {[%clk 0:00:33.6]} 1-0